[Event "Titled Tuesday Blitz July 20 2021"]
[White "Odegov, Artem"]
[Black "Narayanan.S.L"]
[WhiteFideId "34183644"]
[BlackFideId "5058422"]
[WhiteElo "2288"]
[BlackElo "2617"]
[Result "0-1"]
[Round "03"]
[TimeControl "180+1"]
[Date "2021.07.21"]
[WhiteClock "0:00:11"]
[BlackClock "0:01:42"]

1. d4 {[%clk 0:03:00]}  Nc6 {[%clk 0:02:56]} 2. c4 {[%clk 0:03:01]}  e5 {[%clk 0:02:56]} 3. d5 {[%clk 0:03:01]}  Nce7 {[%clk 0:02:56]} 4. Nc3 {[%clk 0:03:02]}  d6 {[%clk 0:02:56]} 5. e4 {[%clk 0:03:03]}  f5 {[%clk 0:02:56]} 6. Bd3 {[%clk 0:03:02]}  g6 {[%clk 0:02:56]} 7. Nge2 {[%clk 0:03:01]}  Nf6 {[%clk 0:02:56]} 8. Bg5 {[%clk 0:03:01]}  Bg7 {[%clk 0:02:56]} 9. Qc2 {[%clk 0:03:00]}  f4 {[%clk 0:02:53]} 10. O-O-O {[%clk 0:03:00]}  h6 {[%clk 0:02:53]} 11. Bxf6 {[%clk 0:03:00]}  Bxf6 {[%clk 0:02:54]} 12. f3 {[%clk 0:03:00]}  O-O {[%clk 0:02:54]} 13. Kb1 {[%clk 0:02:58]}  c5 {[%clk 0:02:53]} 14. Rdg1 {[%clk 0:02:58]}  Bg7 {[%clk 0:02:52]} 15. g4 {[%clk 0:02:55]}  fxg3 {[%clk 0:02:50]} 16. Rxg3 {[%clk 0:02:54]}  a6 {[%clk 0:02:50]} 17. Rhg1 {[%clk 0:02:45]}  Kh7 {[%clk 0:02:49]} 18. Qd2 {[%clk 0:02:38]}  b5 {[%clk 0:02:39]} 19. cxb5 {[%clk 0:02:38]}  axb5 {[%clk 0:02:39]} 20. Bxb5 {[%clk 0:02:38]}  Qa5 {[%clk 0:02:37]} 21. Nc1 {[%clk 0:02:32]}  Rb8 {[%clk 0:02:31]} 22. Bc4 {[%clk 0:02:08]}  Rb4 {[%clk 0:02:29]} 23. Be2 {[%clk 0:02:01]}  Bd7 {[%clk 0:02:27]} 24. h4 {[%clk 0:01:58]}  Rfb8 {[%clk 0:02:25]} 25. Nd3 {[%clk 0:01:51]}  R4b7 {[%clk 0:02:21]} 26. h5 {[%clk 0:01:50]}  c4 {[%clk 0:02:21]} 27. hxg6+ {[%clk 0:01:30]}  Kg8 {[%clk 0:02:21]} 28. Nc1 {[%clk 0:01:23]}  Qb4 {[%clk 0:02:13]} 29. b3 {[%clk 0:01:12]}  cxb3 {[%clk 0:02:13]} 30. Nxb3 {[%clk 0:01:13]}  Qa3 {[%clk 0:02:13]} 31. Bd1 {[%clk 0:01:10]}  Rc8 {[%clk 0:02:10]} 32. Qb2 {[%clk 0:00:59]}  Qa7 {[%clk 0:02:10]} 33. Be2 {[%clk 0:00:55]}  Qe3 {[%clk 0:02:03]} 34. Nd1 {[%clk 0:00:50]}  Qb6 {[%clk 0:01:49]} 35. Bd3 {[%clk 0:00:41]}  Rbc7 {[%clk 0:01:48]} 36. R3g2 {[%clk 0:00:38]}  Ba4 {[%clk 0:01:45]} 37. Rc2 {[%clk 0:00:35]}  Rxc2 {[%clk 0:01:45]} 38. Bxc2 {[%clk 0:00:36]}  Qxg1 {[%clk 0:01:45]} 39. a3 {[%clk 0:00:26]}  Bxb3 {[%clk 0:01:45]} 40. Bxb3 {[%clk 0:00:27]}  Nxg6 {[%clk 0:01:44]} 41. Bc2 {[%clk 0:00:25]}  Kh7 {[%clk 0:01:44]} 42. Ka2 {[%clk 0:00:24]}  Qc5 {[%clk 0:01:44]} 43. Bb3 {[%clk 0:00:24]}  h5 {[%clk 0:01:44]} 44. Nf2 {[%clk 0:00:25]}  h4 {[%clk 0:01:43]} 45. Nh3 {[%clk 0:00:25]}  Bh6 {[%clk 0:01:42]} 46. Qg2 {[%clk 0:00:24]}  Ra8 {[%clk 0:01:42]} 47. a4 {[%clk 0:00:22]}  Rb8 {[%clk 0:01:42]} 48. Ng5+ {[%clk 0:00:20]}  Bxg5 {[%clk 0:01:41]} 49. Qxg5 {[%clk 0:00:21]}  Qc3 {[%clk 0:01:42]} 50. Qh5+ {[%clk 0:00:17]}  Kg7 {[%clk 0:01:42]} 51. Qf5 {[%clk 0:00:11]}  Qxb3+ {[%clk 0:01:42]} 0-1


[Site "https://www.chess.com"]

[Event "Titled Tuesday Blitz July 20 2021"]
[White "Orantes Taboada, Francisco"]
[Black "Willow, Jonah B"]
[WhiteFideId "22274758"]
[BlackFideId "438804"]
[WhiteElo "2073"]
[BlackElo "2261"]
[Result "1-0"]
[Round "03"]
[TimeControl "180+1"]
[Date "2021.07.21"]
[WhiteClock "0:00:06"]
[BlackClock "0:00:02"]

1. Nf3 {[%clk 0:02:59]}  c5 {[%clk 0:03:00]} 2. g3 {[%clk 0:02:59]}  Nc6 {[%clk 0:02:55]} 3. d4 {[%clk 0:02:59]}  cxd4 {[%clk 0:02:53]} 4. Nxd4 {[%clk 0:03:00]}  g6 {[%clk 0:02:53]} 5. Bg2 {[%clk 0:02:59]}  Bg7 {[%clk 0:02:52]} 6. Nb3 {[%clk 0:03:00]}  Nf6 {[%clk 0:02:42]} 7. O-O {[%clk 0:02:59]}  O-O {[%clk 0:02:40]} 8. c4 {[%clk 0:02:58]}  d6 {[%clk 0:02:35]} 9. Nc3 {[%clk 0:02:58]}  Bd7 {[%clk 0:02:25]} 10. Bg5 {[%clk 0:02:45]}  Rc8 {[%clk 0:02:19]} 11. Rc1 {[%clk 0:02:44]}  b6 {[%clk 0:02:12]} 12. Qd2 {[%clk 0:02:38]}  Ne5 {[%clk 0:02:07]} 13. Bd5 {[%clk 0:01:48]}  e6 {[%clk 0:01:14]} 14. f4 {[%clk 0:01:47]}  Nxc4 {[%clk 0:00:41]} 15. Bxc4 {[%clk 0:01:45]}  Rxc4 {[%clk 0:00:42]} 16. Qxd6 {[%clk 0:01:36]}  h6 {[%clk 0:00:41]} 17. Bxf6 {[%clk 0:01:18]}  Bxf6 {[%clk 0:00:42]} 18. Rfd1 {[%clk 0:01:19]}  Bc6 {[%clk 0:00:34]} 19. Ne4 {[%clk 0:01:02]}  Rxc1 {[%clk 0:00:17]} 20. Nxf6+ {[%clk 0:00:42]}  Qxf6 {[%clk 0:00:18]} 21. Nxc1 {[%clk 0:00:33]}  Ba8 {[%clk 0:00:17]} 22. Nd3 {[%clk 0:00:32]}  Qf5 {[%clk 0:00:16]} 23. Qe5 {[%clk 0:00:20]}  Qh3 {[%clk 0:00:13]} 24. e4 {[%clk 0:00:20]}  Rd8 {[%clk 0:00:12]} 25. Nf2 {[%clk 0:00:20]}  Rxd1+ {[%clk 0:00:11]} 26. Nxd1 {[%clk 0:00:21]}  Kh7 {[%clk 0:00:10]} 27. Nf2 {[%clk 0:00:20]}  Qh5 {[%clk 0:00:10]} 28. Qxh5 {[%clk 0:00:21]}  gxh5 {[%clk 0:00:11]} 29. Kf1 {[%clk 0:00:22]}  Kg6 {[%clk 0:00:09]} 30. Ke2 {[%clk 0:00:22]}  h4 {[%clk 0:00:09]} 31. Ke3 {[%clk 0:00:22]}  hxg3 {[%clk 0:00:10]} 32. hxg3 {[%clk 0:00:23]}  Kf6 {[%clk 0:00:10]} 33. Ng4+ {[%clk 0:00:23]}  Kg6 {[%clk 0:00:10]} 34. Ne5+ {[%clk 0:00:23]}  Kf6 {[%clk 0:00:10]} 35. Kd4 {[%clk 0:00:24]}  h5 {[%clk 0:00:10]} 36. b4 {[%clk 0:00:20]}  Ke7 {[%clk 0:00:09]} 37. b5 {[%clk 0:00:20]}  f6 {[%clk 0:00:09]} 38. Nd3 {[%clk 0:00:16]}  Bb7 {[%clk 0:00:08]} 39. a4 {[%clk 0:00:15]}  Kd6 {[%clk 0:00:08]} 40. Nb2 {[%clk 0:00:15]}  e5+ {[%clk 0:00:07]} 41. Ke3 {[%clk 0:00:11]}  Kc5 {[%clk 0:00:07]} 42. Nd3+ {[%clk 0:00:10]}  Kd6 {[%clk 0:00:05]} 43. fxe5+ {[%clk 0:00:07]}  fxe5 {[%clk 0:00:06]} 44. Kf3 {[%clk 0:00:07]}  Bc8 {[%clk 0:00:06]} 45. Nf2 {[%clk 0:00:06]}  Kc5 {[%clk 0:00:06]} 46. Nd3+ {[%clk 0:00:07]}  Kd4 {[%clk 0:00:07]} 47. Nb4 {[%clk 0:00:07]}  Bb7 {[%clk 0:00:06]} 48. Nc6+ {[%clk 0:00:06]}  Kd3 {[%clk 0:00:06]} 49. Nxe5+ {[%clk 0:00:05]}  Kd4 {[%clk 0:00:05]} 50. Nc6+ {[%clk 0:00:06]}  Kc5 {[%clk 0:00:05]} 51. Ne7 {[%clk 0:00:06]}  Kb4 {[%clk 0:00:04]} 52. Nf5 {[%clk 0:00:04]}  Kxa4 {[%clk 0:00:04]} 53. Nd6 {[%clk 0:00:05]}  Ba8 {[%clk 0:00:03]} 54. Kf4 {[%clk 0:00:05]}  Kb4 {[%clk 0:00:04]} 55. e5 {[%clk 0:00:06]}  Kc5 {[%clk 0:00:04]} 56. Kf5 {[%clk 0:00:06]}  Bd5 {[%clk 0:00:04]} 57. Kf6 {[%clk 0:00:06]}  Kd4 {[%clk 0:00:01]} 58. e6 {[%clk 0:00:06]}  Kc5 {[%clk 0:00:01]} 59. e7 {[%clk 0:00:06]}  Kxd6 {[%clk 0:00:01]} 60. e8=Q {[%clk 0:00:06]}  Kc5 {[%clk 0:00:02]} 61. Qe5 {[%clk 0:00:06]}  Kc4 {[%clk 0:00:02]} 1-0


[Site "https://www.chess.com"]

[Event "Titled Tuesday Blitz July 20 2021"]
[White "Peralta, Eduardo"]
[Black "Gracia Alvarez, Gerardo Antonio"]
[WhiteFideId "3700062"]
[BlackFideId "5109124"]
[WhiteElo "2205"]
[BlackElo "2148"]
[Result "1-0"]
[Round "03"]
[TimeControl "180+1"]
[Date "2021.07.21"]
[WhiteClock "0:00:42"]
[BlackClock "0:00:40"]

1. d4 {[%clk 0:03:00]}  Nf6 {[%clk 0:02:59]} 2. c4 {[%clk 0:03:01]}  c5 {[%clk 0:02:59]} 3. d5 {[%clk 0:03:00]}  b5 {[%clk 0:02:59]} 4. f3 {[%clk 0:03:00]}  g6 {[%clk 0:02:54]} 5. e4 {[%clk 0:03:00]}  d6 {[%clk 0:02:54]} 6. Ne2 {[%clk 0:02:56]}  Bg7 {[%clk 0:02:53]} 7. cxb5 {[%clk 0:02:56]}  a6 {[%clk 0:02:53]} 8. Nec3 {[%clk 0:02:56]}  O-O {[%clk 0:02:53]} 9. Be2 {[%clk 0:02:50]}  axb5 {[%clk 0:02:52]} 10. Bxb5 {[%clk 0:02:47]}  Ba6 {[%clk 0:02:47]} 11. O-O {[%clk 0:02:46]}  Qb6 {[%clk 0:02:45]} 12. a4 {[%clk 0:02:35]}  Bxb5 {[%clk 0:02:42]} 13. Nxb5 {[%clk 0:02:34]}  Na6 {[%clk 0:02:42]} 14. N1a3 {[%clk 0:02:34]}  Nc7 {[%clk 0:02:42]} 15. Nc4 {[%clk 0:01:10]}  Qb7 {[%clk 0:02:40]} 16. Nxc7 {[%clk 0:01:11]}  Qxc7 {[%clk 0:02:40]} 17. Bg5 {[%clk 0:01:10]}  h6 {[%clk 0:02:39]} 18. Bd2 {[%clk 0:01:06]}  Rfb8 {[%clk 0:02:37]} 19. Bc3 {[%clk 0:01:06]}  Nd7 {[%clk 0:02:30]} 20. f4 {[%clk 0:01:04]}  Nb6 {[%clk 0:02:01]} 21. Nxb6 {[%clk 0:01:00]}  Qxb6 {[%clk 0:01:58]} 22. a5 {[%clk 0:01:00]}  Qb3 {[%clk 0:01:55]} 23. Qxb3 {[%clk 0:00:53]}  Rxb3 {[%clk 0:01:56]} 24. e5 {[%clk 0:00:54]}  g5 {[%clk 0:01:36]} 25. g3 {[%clk 0:00:53]}  Ra6 {[%clk 0:01:29]} 26. Ra4 {[%clk 0:00:52]}  gxf4 {[%clk 0:01:20]} 27. gxf4 {[%clk 0:00:52]}  f6 {[%clk 0:01:04]} 28. e6 {[%clk 0:00:51]}  f5 {[%clk 0:01:02]} 29. Kh1 {[%clk 0:00:49]}  Bxc3 {[%clk 0:00:59]} 30. bxc3 {[%clk 0:00:48]}  Rxc3 {[%clk 0:00:51]} 31. Rg1+ {[%clk 0:00:47]}  Kh7 {[%clk 0:00:48]} 32. Ra2 {[%clk 0:00:44]}  Ra7 {[%clk 0:00:40]} 33. Rag2 {[%clk 0:00:42]} 1-0


[Site "https://www.chess.com"]

[Event "Titled Tuesday Blitz July 20 2021"]
[White "Pichot, Alan"]
[Black "Leiva, Gianmarco"]
[WhiteFideId "110973"]
[BlackFideId "3804399"]
[WhiteElo "2622"]
[BlackElo "2365"]
[Result "1-0"]
[Round "03"]
[TimeControl "180+1"]
[Date "2021.07.20"]
[WhiteClock "0:01:49"]
[BlackClock "0:00:46"]

1. c4 {[%clk 0:03:00]}  Nf6 {[%clk 0:02:59]} 2. g3 {[%clk 0:03:01]}  c6 {[%clk 0:02:55]} 3. Bg2 {[%clk 0:03:01]}  d5 {[%clk 0:02:56]} 4. Nf3 {[%clk 0:03:02]}  b5 {[%clk 0:02:55]} 5. O-O {[%clk 0:03:03]}  bxc4 {[%clk 0:02:55]} 6. b3 {[%clk 0:03:01]}  cxb3 {[%clk 0:02:53]} 7. Qxb3 {[%clk 0:03:02]}  e6 {[%clk 0:02:48]} 8. Nc3 {[%clk 0:03:02]}  Bd6 {[%clk 0:02:48]} 9. d4 {[%clk 0:03:02]}  O-O {[%clk 0:02:48]} 10. Bf4 {[%clk 0:03:02]}  Bxf4 {[%clk 0:02:44]} 11. gxf4 {[%clk 0:03:03]}  Nbd7 {[%clk 0:02:45]} 12. a4 {[%clk 0:03:04]}  Ba6 {[%clk 0:02:42]} 13. Rfb1 {[%clk 0:03:02]}  Qa5 {[%clk 0:02:39]} 14. e3 {[%clk 0:03:00]}  c5 {[%clk 0:02:36]} 15. Nb5 {[%clk 0:02:50]}  c4 {[%clk 0:02:31]} 16. Qc3 {[%clk 0:02:46]}  Qxc3 {[%clk 0:02:13]} 17. Nxc3 {[%clk 0:02:47]}  Rab8 {[%clk 0:02:14]} 18. Ne5 {[%clk 0:02:47]}  Nxe5 {[%clk 0:01:51]} 19. fxe5 {[%clk 0:02:48]}  Nd7 {[%clk 0:01:51]} 20. Bf1 {[%clk 0:02:41]}  Rxb1 {[%clk 0:01:50]} 21. Rxb1 {[%clk 0:02:41]}  Rb8 {[%clk 0:01:51]} 22. Rc1 {[%clk 0:02:23]}  f5 {[%clk 0:01:40]} 23. Be2 {[%clk 0:02:08]}  Kf7 {[%clk 0:01:34]} 24. Bd1 {[%clk 0:02:08]}  Rb2 {[%clk 0:01:31]} 25. Bc2 {[%clk 0:02:08]}  Ke7 {[%clk 0:01:25]} 26. Kf1 {[%clk 0:02:08]}  Nb8 {[%clk 0:01:18]} 27. Ke1 {[%clk 0:02:05]}  Nc6 {[%clk 0:01:17]} 28. Nd1 {[%clk 0:02:05]}  Rb4 {[%clk 0:01:11]} 29. Kd2 {[%clk 0:02:04]}  Bc8 {[%clk 0:01:03]} 30. Nc3 {[%clk 0:02:02]}  a5 {[%clk 0:00:56]} 31. Bxf5 {[%clk 0:01:55]}  exf5 {[%clk 0:00:56]} 32. Nxd5+ {[%clk 0:01:55]}  Kd7 {[%clk 0:00:54]} 33. Nxb4 {[%clk 0:01:56]}  axb4 {[%clk 0:00:55]} 34. Rxc4 {[%clk 0:01:57]}  Ba6 {[%clk 0:00:52]} 35. Rc5 {[%clk 0:01:55]}  f4 {[%clk 0:00:46]} 36. exf4 {[%clk 0:01:49]} 1-0


[Site "https://www.chess.com"]

[Event "Titled Tuesday Blitz July 20 2021"]
[White "Pinheiro, Iung Alicio de O."]
[Black "Rustemov, Alexander"]
[WhiteFideId "2104350"]
[BlackFideId "4119002"]
[WhiteElo "2600"]
[BlackElo "2848"]
[Result "0-1"]
[Round "03"]
[TimeControl "180+1"]
[Date "2021.07.20"]
[WhiteClock "0:00:08"]
[BlackClock "0:00:59"]

1. e4 {[%clk 0:02:58]}  e6 {[%clk 0:02:59]} 2. d3 {[%clk 0:02:56]}  d5 {[%clk 0:03:00]} 3. Nd2 {[%clk 0:02:56]}  c5 {[%clk 0:03:01]} 4. Ngf3 {[%clk 0:02:56]}  Nc6 {[%clk 0:03:01]} 5. g3 {[%clk 0:02:57]}  g6 {[%clk 0:03:02]} 6. Bg2 {[%clk 0:02:56]}  Bg7 {[%clk 0:03:03]} 7. O-O {[%clk 0:02:56]}  Nge7 {[%clk 0:03:03]} 8. Re1 {[%clk 0:02:56]}  b6 {[%clk 0:03:02]} 9. Nf1 {[%clk 0:02:43]}  h6 {[%clk 0:02:55]} 10. h4 {[%clk 0:02:42]}  Bb7 {[%clk 0:02:44]} 11. c3 {[%clk 0:02:37]}  d4 {[%clk 0:02:42]} 12. cxd4 {[%clk 0:02:32]}  Nxd4 {[%clk 0:02:42]} 13. N1h2 {[%clk 0:02:22]}  Nec6 {[%clk 0:02:37]} 14. a3 {[%clk 0:02:15]}  Nxf3+ {[%clk 0:02:28]} 15. Nxf3 {[%clk 0:02:14]}  Qd6 {[%clk 0:02:25]} 16. Rb1 {[%clk 0:02:01]}  Rd8 {[%clk 0:02:24]} 17. b4 {[%clk 0:01:59]}  c4 {[%clk 0:02:17]} 18. Bf4 {[%clk 0:01:51]}  e5 {[%clk 0:02:16]} 19. Be3 {[%clk 0:01:49]}  cxd3 {[%clk 0:02:14]} 20. Qd2 {[%clk 0:01:49]}  h5 {[%clk 0:02:02]} 21. Rbd1 {[%clk 0:01:12]}  O-O {[%clk 0:02:00]} 22. Bh6 {[%clk 0:01:12]}  a5 {[%clk 0:01:51]} 23. b5 {[%clk 0:01:10]}  Nd4 {[%clk 0:01:40]} 24. Nxd4 {[%clk 0:01:03]}  Bxh6 {[%clk 0:01:33]} 25. Qxh6 {[%clk 0:00:56]}  Qxd4 {[%clk 0:01:33]} 26. Rd2 {[%clk 0:00:52]}  Rd6 {[%clk 0:01:24]} 27. Red1 {[%clk 0:00:38]}  Bxe4 {[%clk 0:01:19]} 28. Bf1 {[%clk 0:00:13]}  Qc5 {[%clk 0:01:13]} 29. Qg5 {[%clk 0:00:11]}  Rfd8 {[%clk 0:01:11]} 30. a4 {[%clk 0:00:11]}  Bf5 {[%clk 0:01:06]} 31. Bg2 {[%clk 0:00:08]}  e4 {[%clk 0:01:05]} 32. Qf4 {[%clk 0:00:08]}  Rd4 {[%clk 0:01:02]} 33. Qe3 {[%clk 0:00:08]}  Rxa4 {[%clk 0:00:59]} 0-1


[Site "https://www.chess.com"]

[Event "Titled Tuesday Blitz July 20 2021"]
[White "Preotu, Razvan"]
[Black "Pacheco Lugo, Alejandro Jose"]
[WhiteFideId "2613280"]
[BlackFideId "3903745"]
[WhiteElo "2407"]
[BlackElo "2125"]
[Result "1-0"]
[Round "03"]
[TimeControl "180+1"]
[Date "2021.07.21"]
[WhiteClock "0:00:18"]
[BlackClock "0:00:14"]

1. e4 {[%clk 0:03:00]}  c5 {[%clk 0:02:59]} 2. Nf3 {[%clk 0:03:01]}  d6 {[%clk 0:03:00]} 3. d4 {[%clk 0:03:00]}  cxd4 {[%clk 0:03:01]} 4. Nxd4 {[%clk 0:03:00]}  Nf6 {[%clk 0:03:01]} 5. Nc3 {[%clk 0:03:01]}  a6 {[%clk 0:03:02]} 6. Be2 {[%clk 0:03:01]}  e5 {[%clk 0:03:01]} 7. Nb3 {[%clk 0:03:01]}  Be7 {[%clk 0:03:02]} 8. Be3 {[%clk 0:03:00]}  Be6 {[%clk 0:03:01]} 9. O-O {[%clk 0:03:00]}  O-O {[%clk 0:03:01]} 10. Nd5 {[%clk 0:02:59]}  Bxd5 {[%clk 0:02:51]} 11. exd5 {[%clk 0:03:00]}  Nbd7 {[%clk 0:02:51]} 12. a4 {[%clk 0:02:48]}  Nc5 {[%clk 0:02:50]} 13. Nxc5 {[%clk 0:02:43]}  dxc5 {[%clk 0:02:51]} 14. a5 {[%clk 0:02:09]}  Qxd5 {[%clk 0:02:47]} 15. Bf3 {[%clk 0:02:06]}  Qxd1 {[%clk 0:02:43]} 16. Rfxd1 {[%clk 0:02:07]}  e4 {[%clk 0:02:43]} 17. Be2 {[%clk 0:02:08]}  h6 {[%clk 0:02:41]} 18. Ra3 {[%clk 0:01:59]}  Rfd8 {[%clk 0:02:37]} 19. Rb3 {[%clk 0:01:58]}  Rxd1+ {[%clk 0:02:37]} 20. Bxd1 {[%clk 0:01:59]}  Rd8 {[%clk 0:02:35]} 21. Be2 {[%clk 0:01:59]}  Rd7 {[%clk 0:02:35]} 22. Kf1 {[%clk 0:01:54]}  Kf8 {[%clk 0:02:33]} 23. Bc4 {[%clk 0:01:54]}  Ke8 {[%clk 0:02:28]} 24. Ke2 {[%clk 0:01:48]}  Bf8 {[%clk 0:02:27]} 25. h3 {[%clk 0:01:44]}  Kd8 {[%clk 0:02:27]} 26. Rc3 {[%clk 0:01:35]}  Nd5 {[%clk 0:02:21]} 27. Rb3 {[%clk 0:01:30]}  Kc8 {[%clk 0:02:12]} 28. c3 {[%clk 0:01:24]}  f5 {[%clk 0:02:11]} 29. Bd2 {[%clk 0:01:20]}  g5 {[%clk 0:02:10]} 30. Ra3 {[%clk 0:01:19]}  f4 {[%clk 0:02:02]} 31. Ra1 {[%clk 0:01:19]}  Kc7 {[%clk 0:01:45]} 32. h4 {[%clk 0:01:17]}  Nf6 {[%clk 0:01:16]} 33. hxg5 {[%clk 0:01:16]}  hxg5 {[%clk 0:01:17]} 34. Rh1 {[%clk 0:01:15]}  Bg7 {[%clk 0:01:13]} 35. g3 {[%clk 0:01:05]}  e3 {[%clk 0:00:58]} 36. fxe3 {[%clk 0:00:57]}  fxe3 {[%clk 0:00:56]} 37. Bxe3 {[%clk 0:00:56]}  Re7 {[%clk 0:00:56]} 38. Kf3 {[%clk 0:00:49]}  Re5 {[%clk 0:00:38]} 39. Bf2 {[%clk 0:00:31]}  Kc6 {[%clk 0:00:32]} 40. g4 {[%clk 0:00:31]}  Ne4 {[%clk 0:00:30]} 41. Be3 {[%clk 0:00:24]}  Nd6 {[%clk 0:00:22]} 42. Be2 {[%clk 0:00:23]}  Re6 {[%clk 0:00:19]} 43. Bxg5 {[%clk 0:00:18]}  Ne4 {[%clk 0:00:14]} 44. Bf4 {[%clk 0:00:18]} 1-0


[Site "https://www.chess.com"]

[Event "Titled Tuesday Blitz July 20 2021"]
[White "Przybylski, Wojciech"]
[Black "Hamley, Ryan"]
[WhiteFideId "1117599"]
[BlackFideId "30959497"]
[WhiteElo "2317"]
[BlackElo "2393"]
[Result "1-0"]
[Round "03"]
[TimeControl "180+1"]
[Date "2021.07.21"]
[WhiteClock "0:00:18"]
[BlackClock "0:00:01"]

1. e4 {[%clk 0:02:54]}  c5 {[%clk 0:02:52]} 2. Nf3 {[%clk 0:02:53]}  d6 {[%clk 0:02:50]} 3. d4 {[%clk 0:02:52]}  cxd4 {[%clk 0:02:51]} 4. Nxd4 {[%clk 0:02:53]}  Nf6 {[%clk 0:02:49]} 5. Nc3 {[%clk 0:02:53]}  a6 {[%clk 0:02:49]} 6. h3 {[%clk 0:02:53]}  e5 {[%clk 0:02:37]} 7. Nde2 {[%clk 0:02:53]}  h5 {[%clk 0:02:38]} 8. Nd5 {[%clk 0:02:50]}  Nxd5 {[%clk 0:02:33]} 9. Qxd5 {[%clk 0:02:50]}  Qc7 {[%clk 0:02:28]} 10. Be3 {[%clk 0:02:48]}  Be6 {[%clk 0:02:18]} 11. Qd2 {[%clk 0:02:47]}  Nd7 {[%clk 0:02:17]} 12. Nc3 {[%clk 0:02:47]}  Nf6 {[%clk 0:02:15]} 13. O-O-O {[%clk 0:02:46]}  Be7 {[%clk 0:02:13]} 14. f4 {[%clk 0:02:45]}  O-O {[%clk 0:02:09]} 15. f5 {[%clk 0:02:44]}  Bc4 {[%clk 0:02:09]} 16. g4 {[%clk 0:02:37]}  Bxf1 {[%clk 0:01:52]} 17. Rdxf1 {[%clk 0:02:32]}  Qc4 {[%clk 0:01:36]} 18. g5 {[%clk 0:02:13]}  Nxe4 {[%clk 0:01:26]} 19. Nxe4 {[%clk 0:02:14]}  Qxe4 {[%clk 0:01:26]} 20. f6 {[%clk 0:02:14]}  Bd8 {[%clk 0:01:24]} 21. fxg7 {[%clk 0:02:09]}  Re8 {[%clk 0:01:23]} 22. Kb1 {[%clk 0:01:32]}  Be7 {[%clk 0:01:07]} 23. g6 {[%clk 0:01:18]}  Qxg6 {[%clk 0:00:53]} 24. Rhg1 {[%clk 0:01:17]}  Qe6 {[%clk 0:00:50]} 25. Qe2 {[%clk 0:01:07]}  Qxh3 {[%clk 0:00:27]} 26. Rh1 {[%clk 0:01:02]}  Qg4 {[%clk 0:00:27]} 27. Qf2 {[%clk 0:01:03]}  f6 {[%clk 0:00:19]} 28. Rfg1 {[%clk 0:00:59]}  Qe4 {[%clk 0:00:08]} 29. Rxh5 {[%clk 0:00:59]}  Kf7 {[%clk 0:00:09]} 30. Rh4 {[%clk 0:00:54]}  Qd5 {[%clk 0:00:07]} 31. Qg3 {[%clk 0:00:43]}  Rg8 {[%clk 0:00:06]} 32. Qg6+ {[%clk 0:00:35]}  Ke6 {[%clk 0:00:07]} 33. c4 {[%clk 0:00:36]}  Qf3 {[%clk 0:00:04]} 34. Qd3 {[%clk 0:00:29]}  Rac8 {[%clk 0:00:03]} 35. Rh2 {[%clk 0:00:25]}  e4 {[%clk 0:00:02]} 36. Qd5+ {[%clk 0:00:23]}  Kd7 {[%clk 0:00:03]} 37. Bb6 {[%clk 0:00:20]}  Qd3+ {[%clk 0:00:02]} 38. Qxd3 {[%clk 0:00:20]}  exd3 {[%clk 0:00:03]} 39. b3 {[%clk 0:00:21]}  Rc6 {[%clk 0:00:03]} 40. Bd4 {[%clk 0:00:20]}  Ke6 {[%clk 0:00:03]} 41. Rd2 {[%clk 0:00:20]}  Kf7 {[%clk 0:00:03]} 42. Rxd3 {[%clk 0:00:20]}  Rxg7 {[%clk 0:00:04]} 43. Re1 {[%clk 0:00:20]}  Rg8 {[%clk 0:00:02]} 44. Rh3 {[%clk 0:00:20]}  Rc7 {[%clk 0:00:02]} 45. Rh7+ {[%clk 0:00:19]}  Rg7 {[%clk 0:00:02]} 46. Rh8 {[%clk 0:00:19]}  f5 {[%clk 0:00:02]} 47. Bxg7 {[%clk 0:00:18]}  Kxg7 {[%clk 0:00:03]} 48. Rh5 {[%clk 0:00:18]}  Kg6 {[%clk 0:00:02]} 49. Rh3 {[%clk 0:00:18]}  Bf6 {[%clk 0:00:03]} 50. Rg1+ {[%clk 0:00:18]}  Bg5 {[%clk 0:00:01]} 51. Rhg3 {[%clk 0:00:18]} 1-0


[Site "https://www.chess.com"]

[Event "Titled Tuesday Blitz July 20 2021"]
[White "Rodriguez Hernandez, Luis Daniel"]
[Black "Garcia, Gabriel Gonzaga"]
[WhiteFideId "3506770"]
[BlackFideId "2138956"]
[WhiteElo "2133"]
[BlackElo "2240"]
[Result "1-0"]
[Round "03"]
[TimeControl "180+1"]
[Date "2021.07.21"]
[WhiteClock "0:00:15"]
[BlackClock "0:00:56"]

1. e4 {[%clk 0:03:00]}  c6 {[%clk 0:02:59]} 2. d4 {[%clk 0:03:00]}  d5 {[%clk 0:03:00]} 3. Nc3 {[%clk 0:03:00]}  dxe4 {[%clk 0:03:01]} 4. Nxe4 {[%clk 0:03:01]}  Nf6 {[%clk 0:03:02]} 5. Nxf6+ {[%clk 0:03:01]}  exf6 {[%clk 0:03:03]} 6. c3 {[%clk 0:03:00]}  Bf5 {[%clk 0:03:03]} 7. Bc4 {[%clk 0:02:23]}  Bd6 {[%clk 0:03:02]} 8. Ne2 {[%clk 0:02:12]}  O-O {[%clk 0:03:01]} 9. Bf4 {[%clk 0:02:01]}  Bxf4 {[%clk 0:02:59]} 10. Nxf4 {[%clk 0:02:02]}  Re8+ {[%clk 0:03:00]} 11. Ne2 {[%clk 0:02:02]}  b5 {[%clk 0:03:00]} 12. Bd3 {[%clk 0:02:00]}  Bxd3 {[%clk 0:03:00]} 13. Qxd3 {[%clk 0:02:01]}  Qe7 {[%clk 0:03:01]} 14. f3 {[%clk 0:01:54]}  Nd7 {[%clk 0:02:58]} 15. Kf2 {[%clk 0:01:54]}  Qd6 {[%clk 0:02:56]} 16. Rae1 {[%clk 0:01:48]}  Ne5 {[%clk 0:02:54]} 17. Qc2 {[%clk 0:01:38]}  Ng6 {[%clk 0:02:52]} 18. Ng3 {[%clk 0:01:38]}  Qd5 {[%clk 0:02:37]} 19. b3 {[%clk 0:01:21]}  b4 {[%clk 0:02:38]} 20. Re4 {[%clk 0:01:18]}  f5 {[%clk 0:02:33]} 21. Rxe8+ {[%clk 0:01:17]}  Rxe8 {[%clk 0:02:34]} 22. Qxf5 {[%clk 0:01:17]}  bxc3 {[%clk 0:02:23]} 23. Qxd5 {[%clk 0:01:15]}  cxd5 {[%clk 0:02:23]} 24. Rc1 {[%clk 0:01:14]}  Rc8 {[%clk 0:02:24]} 25. Ke3 {[%clk 0:01:13]}  Re8+ {[%clk 0:02:17]} 26. Kf2 {[%clk 0:01:13]}  Rc8 {[%clk 0:02:17]} 27. Ne2 {[%clk 0:01:13]}  c2 {[%clk 0:02:15]} 28. Ke3 {[%clk 0:01:13]}  Nh4 {[%clk 0:02:06]} 29. g3 {[%clk 0:01:08]}  Nf5+ {[%clk 0:02:02]} 30. Kd3 {[%clk 0:01:08]}  Re8 {[%clk 0:01:46]} 31. Rxc2 {[%clk 0:01:09]}  Re3+ {[%clk 0:01:46]} 32. Kd2 {[%clk 0:01:08]}  Rxe2+ {[%clk 0:01:47]} 33. Kxe2 {[%clk 0:01:08]}  Nxd4+ {[%clk 0:01:48]} 34. Kd3 {[%clk 0:01:07]}  Nxc2 {[%clk 0:01:48]} 35. Kxc2 {[%clk 0:01:07]}  Kf8 {[%clk 0:01:48]} 36. Kd3 {[%clk 0:01:03]}  Ke7 {[%clk 0:01:49]} 37. Kd4 {[%clk 0:01:04]}  Kd6 {[%clk 0:01:49]} 38. b4 {[%clk 0:01:04]}  Kc6 {[%clk 0:01:49]} 39. a4 {[%clk 0:01:04]}  a6 {[%clk 0:01:45]} 40. f4 {[%clk 0:00:39]}  h5 {[%clk 0:01:42]} 41. h3 {[%clk 0:00:33]}  f6 {[%clk 0:01:25]} 42. b5+ {[%clk 0:00:15]}  axb5 {[%clk 0:01:26]} 43. axb5+ {[%clk 0:00:15]}  Kxb5 {[%clk 0:01:26]} 44. Kxd5 {[%clk 0:00:15]}  Kb4 {[%clk 0:00:53]} 45. Ke6 {[%clk 0:00:15]}  Kc3 {[%clk 0:00:54]} 46. Kf7 {[%clk 0:00:15]}  Kd3 {[%clk 0:00:55]} 47. Kxg7 {[%clk 0:00:15]}  Ke3 {[%clk 0:00:56]} 48. Kxf6 {[%clk 0:00:15]} 1-0


[Site "https://www.chess.com"]